bitfinex/quotes_ETHUSD_20240621
["timestamp","ask_amount","ask_price","bid_price","bid_amount"]
[1719012206039,2.57532097,3525.5,3525.4,1.52714359]
[1719012208533,2.57532097,3525.5,3525.4,0.65814359]
[1719012208874,2.5743389,3525.5,3525.4,0.65814359]
[1719012209341,2.08322106,3525.5,3525.4,0.65814359]
[1719012209546,2.57435109,3525.5,3525.4,0.65814359]
[1719012209843,2.57432471,3525.5,3525.4,0.65814359]
[1719012212041,2.5742968,3525.5,3525.4,0.65814359]
[1719012213454,0.4911349,3525.5,3525.4,1.52714359]
[1719012213617,0.4911349,3525.5,3525.4,3.79638359]
[1719012213817,2.0831619,3525.7,3525.4,3.79638359]
[1719012214134,0.49110398,3525.6,3525.4,1.52714359]
[1719012214310,2.26905,3525.7,3525.4,1.52714359]
[1719012214511,0.49109689,3525.6,3525.4,1.52714359]
[1719012214722,2.0831619,3525.7,3525.4,3.79638359]
[1719012214931,2.26905,3525.7,3525.4,0.65814359]
[1719012215117,4.3522957,3525.7,3525.4,1.52714359]
[1719012215317,2.57436199,3525.6,3525.4,1.52714359]
[1719012215524,0.49111629,3525.5,3525.4,1.52714359]
[1719012217734,0.49111629,3525.5,3525.4,0.65814359]
[1719012218148,2.26914,3525.6,3525.4,0.65814359]
[1719012218318,0.49113419,3525.5,3525.4,0.65814359]
[1719012218522,2.26914,3525.6,3525.4,0.65814359]
[1719012218731,0.49113407,3525.5,3525.4,0.65814359]
[1719012219130,0.49112526,3525.5,3525.4,0.65814359]
[1719012221351,0.49112474,3525.5,3525.4,0.65814359]
[1719012221924,0.49112474,3525.5,3525.4,2.92738359]
[1719012224554,0.49111528,3525.5,3525.4,2.92738359]
[1719012225024,0.49111528,3525.5,3525.4,0.65814359]
[1719012227032,0.49111528,3525.5,3525.4,2.92738359]
[1719012227558,2.08238662,3525.7,3525.4,2.92738359]
[1719012227778,0.49110467,3525.6,3525.5,0.869]
[1719012227924,0.49110424,3525.6,3525.5,0.869]
[1719012228127,0.49110424,3525.6,3525.5,0.97350278]
[1719012228339,0.49110424,3525.6,3525.5,3.24268278]
[1719012228540,0.49109299,3525.6,3525.5,3.24268278]
[1719012230059,0.49109299,3525.6,3525.5,0.10450278]
[1719012230219,3.29340975,3525.6,3525.5,0.10450278]
[1719012230421,2.80231676,3525.6,3525.5,0.10450278]
[1719012230626,1.21108371,3525.6,3525.5,0.10450278]
[1719012230825,0.49113464,3525.6,3525.5,0.10450278]
[1719012231025,2.5733417,3525.6,3525.5,0.10450278]
[1719012231239,0.49113464,3525.6,3525.5,0.10450278]
[1719012233647,0.49113218,3525.6,3525.5,0.10450278]
[1719012236854,0.49112495,3525.6,3525.5,0.10450278]
[1719012237259,2.26911,3525.7,3525.5,0.10450278]
[1719012237467,0.49112874,3525.6,3525.5,0.10450278]
[1719012237972,0.49112772,3525.6,3525.5,0.10450278]
[1719012239970,2.57456017,3525.6,3525.5,0.10450278]
[1719012240172,2.57455532,3525.6,3525.5,0.10450278]
[1719012241253,2.57455532,3525.6,3525.5,2.52300278]
[1719012241765,2.57455532,3525.6,3525.5,0.10450278]
[1719012241954,0.49111028,3525.6,3525.5,0.10450278]
[1719012242150,0.49111028,3525.6,3525.5,2.37368278]
[1719012242355,2.57450248,3525.6,3525.5,2.37368278]
[1719012242759,0.49111004,3525.6,3525.5,2.37368278]
[1719012242963,2.57450248,3525.6,3525.5,2.37368278]
[1719012243199,0.49111004,3525.6,3525.5,2.37368278]
[1719012243856,2.57450248,3525.6,3525.5,2.37368278]
[1719012244055,0.49111004,3525.6,3525.5,2.37368278]
[1719012244457,2.07450248,3525.7,3525.5,2.37368278]
[1719012244857,4.22085651,3526.2,3525.7,4.65904]
[1719012244858,4.41311383,3526.2,3525.7,4.65904]
[1719012245068,2.46100732,3526.4,3526.1,0.869]
[1719012245291,3.0,3526.6,3526.3,0.869]
[1719012245576,7.93740774,3526.7,3526.3,0.869]
[1719012245787,5.4761,3526.7,3526.4,0.10412123]
[1719012245988,3.0,3526.6,3526.4,0.10412123]
[1719012246758,7.74451,3526.7,3526.4,0.10412123]
[1719012249479,2.08086763,3526.6,3526.4,0.10412123]
[1719012249662,5.08086763,3526.6,3526.4,0.10412123]
[1719012250578,3.0,3526.6,3526.4,0.10412123]
[1719012256150,4.74451,3526.7,3526.4,0.10412123]
[1719012256151,2.4761,3526.7,3526.4,0.10412123]
[1719012256358,2.26835,3526.8,3526.4,0.10412123]
[1719012256581,5.26835,3526.8,3526.4,0.10412123]
[1719012258770,0.49097647,3526.7,3526.4,0.10412123]
[1719012258967,2.26835,3526.8,3526.4,0.10412123]
[1719012259163,5.26835,3526.8,3526.4,0.10412123]
[1719012259359,0.49098943,3526.7,3526.4,0.10412123]
[1719012259691,5.26835,3526.8,3526.4,0.10412123]
[1719012263964,2.07647837,3527.1,3526.6,2.26841]
[1719012264208,0.49095955,3527.0,3526.6,2.26841]
[1719012264368,0.35,3527.1,3526.7,0.10380192]
[1719012264369,3.0,3527.1,3526.7,0.10380192]
[1719012264563,0.49095352,3527.0,3526.6,2.26841]
[1719012264770,3.0,3527.1,3526.7,0.10378751]
[1719012265064,0.49094988,3527.0,3526.6,2.26841]
[1719012265279,3.0,3527.1,3526.8,0.10375506]
[1719012265496,0.84094742,3527.0,3526.7,0.97278751]
[1719012265770,3.0,3527.1,3526.8,0.10372624]
[1719012265971,5.3054,3527.2,3526.7,0.869]
[1719012266192,0.49093397,3527.1,3526.7,0.869]
[1719012266402,0.49093397,3527.0,3526.8,0.10372624]
[1719012266707,0.49093397,3527.0,3526.8,2.26828]
[1719012266908,0.49093397,3527.0,3526.9,5.50925379]
[1719012267130,0.35,3527.2,3527.1,2.26812]
[1719012267480,3.0,3527.4,3527.1,2.37171432]
[1719012267878,3.0,3527.4,3527.1,5.69351432]
[1719012268082,3.0,3527.4,3527.2,2.26803]
[1719012268427,3.0,3527.4,3527.3,0.10346316]
[1719012269333,3.49087807,3527.4,3527.3,0.10346316]
[1719012270092,3.0,3527.4,3527.3,0.10346316]
[1719012270287,3.49088232,3527.4,3527.3,0.10346316]
[1719012270602,3.0,3527.4,3527.3,0.10346316]
[1719012270788,5.26783,3527.6,3527.3,0.10346316]
[1719012270989,0.84087319,3527.5,3527.3,0.10346316]
[1719012271188,0.49087319,3527.4,3527.3,0.10346316]
[1719012271689,3.0,3527.5,3527.3,0.10346316]
[1719012272012,0.35,3527.5,3527.3,0.10346316]
[1719012272207,0.4908834,3527.4,3527.3,0.10346316]
[1719012272416,0.4908834,3527.4,3527.0,2.26819]
[1719012272590,5.2679,3527.5,3527.1,0.10352805]
[1719012272788,0.84089066,3527.4,3527.1,0.10352805]
[1719012273011,3.35,3527.4,3527.1,0.10352805]
[1719012273380,0.49089908,3527.3,3527.1,0.10352805]
[1719012273597,3.0,3527.4,3527.1,0.10352805]
[1719012273799,0.49091394,3527.3,3527.1,0.10352805]
[1719012273987,0.49091394,3527.2,3527.1,0.10352805]
[1719012275632,2.6376647,3527.4,3527.1,0.10352805]
[1719012275913,0.35,3527.4,3527.1,0.10352805]
[1719012276122,2.61796,3527.4,3527.1,0.10352805]
[1719012276495,2.61796,3527.4,3526.9,2.26827]
[1719012276496,2.26821,3527.0,3526.6,2.26846]
[1719012276696,2.26821,3527.0,3526.7,0.55]
[1719012279991,2.26821,3527.0,3526.3,9.8928]
[1719012279992,2.26821,3527.0,3526.3,7.44]
[1719012280218,2.26839,3526.8,3526.4,0.869]
[1719012281740,2.26856,3526.5,3526.0,2.26885]
[1719012282040,2.26848,3526.6,3526.2,0.869]
[1719012282570,2.26848,3526.6,3526.1,3.13774]
[1719012284649,2.26848,3526.6,3526.1,2.26874]
[1719012284851,2.26848,3526.6,3526.1,3.13774]
[1719012286968,2.26854,3526.5,3526.1,0.869]
[1719012289467,2.26854,3526.5,3526.2,0.10182574]
[1719012289655,2.26854,3526.5,3526.1,0.869]
[1719012289858,2.26854,3526.5,3526.2,0.10182574]
[1719012290169,2.26854,3526.5,3526.1,0.869]
[1719012290369,2.26854,3526.5,3526.3,0.10179328]
[1719012290670,2.26854,3526.5,3526.4,0.10176082]
[1719012290839,2.26854,3526.5,3526.1,0.869]
[1719012291034,2.26854,3526.5,3526.2,0.10182574]
[1719012291261,2.26854,3526.5,3526.1,0.869]
[1719012291462,2.26854,3526.5,3526.2,0.10182574]
[1719012291738,2.26854,3526.5,3526.0,3.13784]
[1719012291974,2.26854,3526.5,3526.3,0.10185668]
[1719012292185,2.26854,3526.5,3526.1,0.55]
[1719012292355,2.26854,3526.5,3526.4,0.10182422]
[1719012292834,2.26854,3526.5,3526.1,0.55]
[1719012293037,2.26854,3526.5,3526.2,0.10188914]
[1719012293348,2.26854,3526.5,3526.1,0.55]
[1719012293561,2.26854,3526.5,3526.3,0.10185668]
[1719012293734,2.26854,3526.5,3526.2,0.10188914]
[1719012294247,2.26854,3526.5,3526.3,0.10185668]
[1719012294448,2.26854,3526.5,3526.1,0.55]
[1719012294658,2.26854,3526.5,3526.2,0.10188914]
[1719012294955,2.26854,3526.5,3526.1,0.55]
[1719012295144,2.26854,3526.5,3526.3,0.10185668]
[1719012295344,4.5372,3526.4,3526.3,0.10185668]
[1719012295552,2.26876,3526.2,3525.6,4.5729]
[1719012295855,2.26876,3526.2,3525.8,0.869]
[1719012296033,2.26876,3526.2,3525.9,0.65198653]
[1719012297051,2.2688,3526.1,3525.9,0.65198653]
[1719012298576,2.2688,3526.1,3525.9,0.10198653]
[1719012298577,2.26885,3526.0,3525.9,0.10198653]
[1719012298941,2.26885,3526.0,3525.6,0.869]
[1719012299140,2.26885,3526.0,3525.9,0.10202973]
[1719012299342,2.26885,3526.0,3525.7,0.55]
[1719012299542,2.2688,3526.1,3525.9,0.10202973]
[1719012299739,2.26891,3526.0,3525.8,0.1020622]
[1719012299939,2.26891,3526.0,3525.7,0.55]
[1719012300364,2.26891,3526.0,3524.9,2.26956]
[1719012300365,2.26905,3525.7,3524.9,2.26956]
[1719012300572,2.26919,3525.5,3525.0,0.869]
[1719012300778,2.26919,3525.5,3525.0,2.26944]
[1719012300985,2.26919,3525.5,3525.1,0.869]
[1719012301146,2.26919,3525.5,3525.1,2.26943]
[1719012301342,2.26912,3525.6,3525.1,2.26943]
[1719012301557,2.26905,3525.7,3525.3,0.869]
[1719012301752,0.49113377,3525.6,3525.3,0.869]
[1719012301977,2.26913,3525.6,3525.3,0.869]
[1719012302273,2.26913,3525.6,3525.2,2.26937]
[1719012302480,2.26913,3525.6,3525.3,1.419]
[1719012303681,2.26913,3525.6,3525.3,0.55]
[1719012303857,2.26913,3525.6,3525.3,0.869]
[1719012304057,2.26918,3525.5,3525.2,0.55]
[1719012304263,2.26918,3525.5,3525.3,0.10222457]
[1719012304647,2.26912,3525.6,3525.3,0.10222457]
[1719012306167,2.26912,3525.6,3525.4,0.869]
[1719012306676,2.26912,3525.6,3525.5,0.10235561]
[1719012306981,2.26912,3525.6,3525.3,2.2999]
[1719012307194,2.26912,3525.6,3525.5,0.10235561]
[1719012308479,2.26899,3525.8,3525.5,0.10235561]
[1719012309277,2.26905,3525.7,3525.5,0.10235561]
[1719012309796,3.0,3526.0,3525.5,0.10235561]
[1719012310110,0.49110843,3525.9,3525.5,2.37152561]
[1719012310394,2.26891,3526.0,3525.5,2.37152561]
[1719012310608,2.26891,3526.0,3525.6,0.869]
[1719012310806,0.49110452,3525.9,3525.6,0.869]
[1719012311102,2.26891,3526.0,3525.7,0.10242616]
[1719012311302,2.76007312,3525.9,3525.7,0.10242616]
[1719012311459,2.26897,3525.9,3525.7,0.10242616]
[1719012313277,2.26898,3525.8,3525.7,0.10242616]
[1719012313496,2.76010089,3525.8,3525.7,0.10242616]
[1719012314002,2.76010089,3525.8,3525.4,0.869]
[1719012314170,2.26898,3525.8,3525.7,0.10242616]
[1719012314372,2.7601004,3525.8,3525.4,0.869]
[1719012314567,2.26893,3525.9,3525.7,0.10242616]
[1719012314899,4.53791,3525.9,3525.8,0.10239369]
[1719012315196,5.02903541,3525.9,3525.8,0.10239369]
[1719012315403,2.26899,3525.8,3525.5,0.55]
[1719012318564,2.26911,3525.6,3525.5,0.55]
[1719012318764,2.26924,3525.4,3525.3,0.55]
[1719012319003,2.26924,3525.4,3525.0,1.419]
[1719012319495,2.26924,3525.4,3525.1,0.10259796]
[1719012319667,2.26924,3525.4,3525.2,0.55]
[1719012319864,2.26924,3525.4,3525.3,0.102533]
[1719012320169,2.26924,3525.4,3525.3,0.652533]
[1719012320590,2.26919,3525.5,3525.3,0.652533]
[1719012320993,2.26924,3525.4,3525.3,0.652533]
[1719012322286,4.992323,3525.4,3525.3,0.102533]
[1719012322601,4.992323,3525.4,3524.8,2.2999]
[1719012322602,2.26939,3525.2,3524.8,3.1689]
[1719012322770,2.26939,3525.2,3524.9,0.55]
[1719012323899,2.26932,3525.3,3525.0,0.869]
[1719012324201,2.3508,3525.6,3525.1,0.55]
[1719012324405,2.3508,3525.6,3525.2,0.869]
[1719012324406,0.4911553,3525.5,3525.2,0.869]
[1719012324588,2.26913,3525.6,3525.2,0.869]
[1719012324992,2.76032822,3525.5,3525.2,0.869]
[1719012325202,2.26919,3525.5,3525.2,0.869]
[1719012325702,0.49114043,3525.4,3525.2,0.869]
[1719012325922,2.26919,3525.5,3525.2,0.869]
[1719012326095,0.49114245,3525.4,3525.2,0.869]
[1719012326406,2.26919,3525.5,3525.2,0.869]
[1719012326576,5.11120139,3525.4,3525.1,0.55]
[1719012326777,0.49114139,3525.3,3525.1,0.869]
[1719012327807,4.62006,3525.4,3525.1,0.869]
[1719012328013,0.49116001,3525.2,3525.1,0.869]
[1719012328187,2.26926,3525.4,3525.1,1.419]
[1719012328510,0.49114982,3525.3,3525.1,0.869]
[1719012328810,2.26926,3525.4,3525.1,0.869]
[1719012329016,0.49114929,3525.3,3525.1,0.869]
[1719012329178,2.26926,3525.4,3525.1,0.869]
[1719012329380,0.49114829,3525.3,3525.1,0.869]
[1719012329601,2.26926,3525.4,3525.1,0.869]
[1719012329794,0.491147,3525.3,3525.1,0.869]
[1719012329998,2.26926,3525.4,3525.1,0.869]
[1719012330213,0.491147,3525.3,3525.1,0.869]
[1719012330510,2.26919,3525.5,3525.1,0.869]
[1719012330706,0.49114671,3525.4,3525.1,0.869]
[1719012330951,2.26909,3525.7,3525.3,0.869]
[1719012331115,0.49113679,3525.6,3525.3,0.869]
[1719012331286,0.49113679,3525.5,3525.3,0.869]
[1719012331486,0.49113679,3525.4,3525.3,0.869]
[1719012331723,0.49113679,3525.4,3525.3,1.419]
[1719012332080,5.11117679,3525.4,3525.3,0.55]
[1719012332285,5.11117679,3525.4,3525.0,1.419]
[1719012332525,0.49113679,3525.3,3525.0,1.419]
[1719012332882,2.3508,3525.2,3525.0,0.869]
[1719012333103,0.49113679,3525.1,3524.6,2.26975]
[1719012333309,0.49113679,3525.1,3524.7,0.10288068]
[1719012333506,2.26963,3524.8,3524.7,0.10288068]
[1719012333693,2.76076679,3524.8,3524.7,0.10288068]
[1719012333912,2.76076679,3524.8,3524.1,7.44]
[1719012333913,2.26995,3524.3,3524.1,7.44]
[1719012334114,2.26995,3524.3,3523.8,2.27025]
[1719012334306,2.26995,3524.3,3524.2,0.10311811]
[1719012334521,2.76127518,3524.3,3523.8,2.27025]
[1719012334816,2.26995,3524.3,3524.2,0.10311811]
[1719012334997,2.7612746,3524.3,3523.8,3.13925]
[1719012335193,2.26995,3524.3,3524.2,0.10311811]
[1719012335395,2.26995,3524.3,3523.8,3.13925]
[1719012335396,2.76127186,3524.3,3523.8,3.13925]
[1719012335730,0.49133056,3524.2,3523.8,3.13925]
[1719012336032,0.49133056,3524.1,3523.9,0.10321562]
[1719012336245,0.49133056,3524.2,3523.9,0.10321562]
[1719012336391,2.26995,3524.3,3523.9,0.10321562]
[1719012336585,0.49132592,3524.2,3523.9,0.10321562]
[1719012336815,2.26995,3524.3,3523.9,0.10321562]
[1719012337022,0.49132865,3524.2,3524.0,0.55]
[1719012337234,2.26995,3524.3,3524.0,0.55]
[1719012337450,2.27001,3524.2,3524.1,0.10315061]
[1719012338053,4.54002,3524.2,3524.1,0.55]
[1719012338350,4.54002,3524.2,3524.1,0.65315061]
[1719012338351,5.03134379,3524.2,3524.1,0.65315061]
[1719012338630,2.76133379,3524.2,3524.1,0.65315061]
[1719012339130,2.27001,3524.2,3524.1,0.55]
[1719012339331,2.27001,3524.2,3523.9,0.55]
[1719012339497,2.27001,3524.2,3524.1,0.10373323]
[1719012339694,2.27001,3524.2,3524.1,0.55]
[1719012339894,2.27001,3524.2,3524.1,0.65373323]
[1719012340957,2.76134011,3524.2,3524.1,0.65373323]
[1719012341097,2.27001,3524.2,3524.1,0.65373323]
[1719012341929,5.03135945,3524.2,3524.1,0.10373323]
[1719012342149,2.27022,3523.9,3523.6,0.869]
[1719012342514,2.27022,3523.9,3523.7,0.10385171]
[1719012342854,2.27022,3523.9,3523.5,0.869]
[1719012343066,2.27022,3523.9,3523.8,0.1038192]
[1719012343273,2.27022,3523.9,3523.5,0.869]
[1719012343723,2.27022,3523.9,3523.6,0.65391018]
[1719012343926,7.68002,3523.7,3523.6,0.10391018]
[1719012344150,7.68002,3523.7,3523.2,0.0843732]
[1719012344151,2.27055,3523.4,3523.2,0.0843732]
[1719012344822,2.27055,3523.4,3523.3,0.10059047]
[1719012345168,2.27059,3523.3,3523.2,0.0843732]
[1719012345353,2.27047,3523.5,3523.2,0.0843732]
[1719012345676,2.27053,3523.4,3523.2,0.0843732]
[1719012345829,2.27047,3523.5,3523.2,0.0843732]
[1719012346681,3.0,3523.6,3523.2,0.0843732]
[1719012346956,2.27035,3523.7,3523.5,0.869]
[1719012347638,2.27021,3523.9,3523.5,0.869]
[1719012347842,2.27027,3523.8,3523.5,0.869]
[1719012348043,2.27033,3523.8,3523.5,0.869]
[1719012349435,2.27033,3523.8,3523.6,0.10049293]
[1719012349665,2.27021,3523.9,3523.6,0.10049293]
[1719012349882,2.27021,3523.9,3523.5,0.869]
[1719012350086,2.27021,3523.9,3523.7,0.10046042]
[1719012350245,2.27021,3523.9,3523.6,0.10049293]
[1719012350449,2.27021,3523.9,3523.8,0.10042792]
[1719012350647,2.27021,3523.9,3523.7,0.10046042]
[1719012350843,3.0,3524.0,3523.8,0.10042792]
[1719012351043,0.35,3524.0,3523.8,0.10042792]
[1719012351277,3.0,3524.1,3523.8,0.10042792]
[1719012351585,0.35,3524.1,3523.8,0.10042792]
[1719012351976,3.0,3524.3,3523.9,3.6892]
[1719012352146,0.35,3524.3,3523.9,3.78959541]
[1719012352579,3.35,3524.3,3523.9,3.78959541]
[1719012354061,3.35,3524.3,3523.9,3.23959541]
[1719012356353,3.0,3524.3,3523.9,3.23959541]
[1719012356571,5.6199,3524.4,3523.9,3.23959541]
[1719012357366,5.6199,3524.4,3524.0,2.27014]
[1719012357570,5.6199,3524.4,3523.9,2.37059541]
[1719012357754,5.6199,3524.4,3524.1,0.10033041]
[1719012357755,2.27002,3524.2,3524.1,0.10033041]
[1719012357953,2.26995,3524.3,3524.1,0.10033041]
[1719012358153,5.26995,3524.3,3523.9,2.2702]
[1719012358380,5.26995,3524.3,3524.2,0.10029791]
[1719012358589,5.26995,3524.3,3523.9,2.2702]
[1719012358752,2.26995,3524.3,3524.2,0.10042444]
[1719012358956,2.26995,3524.3,3523.9,2.2702]
[1719012359177,2.26995,3524.3,3524.2,0.10042444]
[1719012359489,2.26995,3524.3,3523.9,2.2702]
[1719012359675,2.26995,3524.3,3524.2,0.10042444]
[1719012360159,5.26989,3524.4,3523.9,2.2702]
[1719012360368,2.26989,3524.4,3524.2,0.10042444]
[1719012360579,3.0,3524.3,3523.9,2.2702]
[1719012360962,3.0,3524.3,3523.8,3.13923]
[1719012361288,2.26958,3524.9,3524.2,0.869]
[1719012361503,2.2697,3524.7,3524.2,0.869]
[1719012361717,0.49128243,3524.6,3524.2,0.869]
[1719012362162,3.0,3524.6,3524.3,2.26992]
[1719012362351,3.0,3524.6,3523.9,0.55]
[1719012362352,0.49127066,3524.5,3524.4,5.40876]
[1719012362553,3.0,3524.9,3524.6,2.26976]
[1719012362758,0.49122888,3524.8,3524.6,3.13876]
[1719012362959,0.66065095,3525.0,3524.6,3.13876]
[1719012363185,0.49122618,3524.9,3524.6,3.13876]
[1719012363381,0.49122618,3524.8,3524.6,3.13876]
[1719012363579,0.49122618,3524.7,3524.6,3.13876]
[1719012364090,0.49122618,3525.0,3524.6,3.13876]
[1719012364256,0.49122897,3524.9,3524.6,3.13876]
[1719012364596,4.59525,3525.4,3524.9,2.26955]
[1719012364774,0.35,3525.2,3524.8,3.13862]
[1719012364975,0.49119881,3525.1,3525.0,0.10013288]
[1719012365181,0.49119881,3525.1,3524.8,3.13862]
[1719012365358,0.35,3525.2,3525.0,0.10013288]
[1719012365560,0.35,3525.2,3524.8,2.26962]
[1719012365561,0.49120682,3525.1,3524.8,2.26962]
[1719012365759,0.49120682,3525.0,3524.8,2.26962]
[1719012365995,2.26937,3525.2,3524.8,2.26962]
[1719012366194,0.49120656,3525.1,3524.8,2.26962]
[1719012366373,2.26937,3525.2,3524.8,2.26962]
[1719012366693,0.4912066,3525.1,3524.8,2.26962]
[1719012366871,2.26937,3525.2,3524.8,2.26962]
[1719012367188,5.61937,3525.2,3524.8,2.26962]
[1719012367484,0.49120649,3525.1,3524.8,2.26962]
[1719012367690,5.26937,3525.2,3524.8,2.26962]
[1719012367854,0.49120649,3525.1,3524.8,2.26962]
[1719012368060,5.26937,3525.2,3524.8,2.26962]
[1719012368257,0.49120645,3525.1,3524.8,2.26962]
[1719012368512,5.61937,3525.2,3524.8,2.26962]
[1719012368694,0.49120647,3525.1,3524.8,2.26962]
[1719012368895,5.26937,3525.2,3524.8,2.24162]
[1719012369093,0.49120483,3525.1,3524.8,2.24162]
[1719012369295,2.26944,3525.1,3524.7,2.26968]
[1719012372298,4.53893,3525.1,3524.6,3.13875]
[1719012372482,2.8725773,3525.1,3524.6,3.13875]
[1719012373095,2.8725773,3525.1,3524.6,0.869]
[1719012373398,2.26952,3525.0,3524.6,3.13874]
[1719012374298,2.26952,3525.0,3524.5,2.26976]
[1719012374299,2.26966,3524.8,3524.4,0.55]
[1719012374499,2.26966,3524.8,3524.5,0.55]
[1719012376379,0.49124551,3524.7,3524.5,0.55]
[1719012376575,2.26966,3524.8,3524.5,0.55]
[1719012376776,0.49124555,3524.7,3524.5,0.55]
[1719012377009,2.26966,3524.8,3524.5,0.55]
[1719012377196,0.4912426,3524.7,3524.5,0.55]
[1719012377394,2.26966,3524.8,3524.5,0.55]
[1719012377597,2.76099095,3524.7,3524.4,0.869]
[1719012377776,0.49124095,3524.6,3524.4,0.869]
[1719012379384,2.26975,3524.7,3524.5,0.10008539]
[1719012379590,0.49125455,3524.6,3524.5,0.10008539]
[1719012379789,0.49125452,3524.6,3524.5,0.10008539]
[1719012382816,2.26975,3524.7,3524.5,0.10008539]
[1719012382985,0.49124536,3524.6,3524.5,0.10008539]
[1719012383385,0.49124535,3524.6,3524.5,0.10008539]
[1719012384121,0.49124492,3524.6,3524.5,0.10008539]
[1719012385415,2.26975,3524.7,3524.5,0.10008539]
[1719012385619,0.49124441,3524.6,3524.5,0.10008539]
[1719012386719,0.49124441,3524.6,3524.5,2.36990539]
[1719012387629,3.0,3525.2,3524.9,2.26953]
[1719012387926,0.49119451,3525.1,3524.9,2.26953]
[1719012388126,3.89390785,3525.2,3525.0,0.09996608]
[1719012388292,0.49119401,3525.1,3525.0,0.09996608]
[1719012388996,0.89390785,3525.2,3525.0,0.09996608]
[1719012389194,0.49119426,3525.1,3525.0,0.09996608]
[1719012389695,0.49119426,3525.1,3525.0,2.36946608]
[1719012392036,0.49119426,3525.1,3525.0,4.63896608]
[1719012392239,3.0,3525.3,3525.1,2.26939]
[1719012392393,0.49117946,3525.2,3525.1,2.26939]
[1719012392598,2.07753937,3525.3,3525.2,0.09990112]
[1719012392908,2.5687198,3525.3,3525.1,2.3693236]
[1719012393216,2.07753937,3525.3,3525.2,0.09990112]
[1719012393548,0.49118061,3525.3,3525.2,0.09990112]
[1719012393832,3.49118061,3525.3,3525.2,0.09990112]
[1719012394329,3.49118061,3525.3,3525.2,2.36927112]
[1719012394529,0.49118061,3525.3,3525.2,5.50764112]
[1719012394706,0.49118061,3525.3,3525.2,6.90801112]
[1719012394912,0.49118061,3525.3,3525.2,5.50764112]
[1719012395099,3.0,3525.6,3525.3,2.26929]
[1719012395298,0.49113008,3525.5,3525.3,2.26929]
[1719012395497,3.0,3525.6,3525.4,0.09964354]
[1719012395719,0.49113893,3525.5,3525.4,0.09964354]
[1719012396201,0.49113893,3525.5,3525.3,2.26929]
[1719012396431,0.49113893,3525.4,3525.3,2.26929]
[1719012396908,0.49113893,3525.5,3525.3,2.26929]
[1719012398236,0.49113658,3525.4,3525.3,2.26929]
[1719012398738,0.49113658,3525.4,3525.0,4.56068]
[1719012398739,0.49113658,3525.4,3525.1,2.26938]
[1719012398938,0.49113658,3525.3,3525.2,3.13836]
[1719012399142,0.49113658,3525.5,3525.3,2.26927]
[1719012399441,0.4911402,3525.4,3525.3,2.26927]
[1719012401203,3.0,3525.6,3525.3,2.26927]
[1719012401441,0.49114397,3525.4,3525.3,2.26927]
[1719012401736,0.4911439,3525.4,3525.3,2.26927]
[1719012402236,0.49114391,3525.4,3525.3,2.26927]
[1719012404446,0.49114393,3525.4,3525.3,2.26927]
[1719012405745,0.49114393,3525.4,3524.5,7.44]
[1719012405746,2.26931,3525.3,3524.6,2.26972]
[1719012406081,2.26944,3525.1,3524.6,2.26974]
[1719012406244,2.76065393,3525.0,3524.6,2.26974]
[1719012406410,0.49114393,3524.9,3524.6,2.26974]
[1719012407319,2.26951,3525.0,3524.6,2.26974]
[1719012407511,0.4912256,3524.9,3524.6,2.26974]
[1719012407712,0.4912256,3524.8,3524.6,2.26974]
[1719012407924,2.26951,3525.0,3524.6,2.26974]
[1719012408124,0.49122533,3524.9,3524.6,2.26974]
[1719012408414,0.49122533,3524.8,3524.6,2.26974]
[1719012408614,2.26951,3525.0,3524.6,2.26974]
[1719012408615,0.49122533,3524.9,3524.6,2.26974]
[1719012408819,0.49122533,3524.8,3524.6,2.26974]
[1719012409021,0.49122533,3524.7,3524.6,2.26974]
[1719012409221,0.49122533,3524.9,3524.6,2.26974]
[1719012410523,4.34762178,3525.0,3524.6,2.26974]
[1719012410729,0.49123286,3524.9,3524.6,2.26974]
[1719012410929,2.26951,3525.0,3524.6,2.26974]
[1719012411136,0.4912305,3524.8,3524.6,2.26974]
[1719012411451,0.4912305,3524.7,3524.6,2.26974]
[1719012411654,0.49123054,3524.9,3524.6,2.26974]
[1719012413445,2.76080054,3524.9,3524.5,2.26981]
[1719012413647,4.34756016,3524.9,3524.5,2.26981]
[1719012413851,0.49123813,3524.8,3524.5,2.26981]
[1719012414031,0.49123813,3524.7,3524.5,2.26981]
[1719012414232,4.34756016,3524.9,3524.5,2.26981]
[1719012414233,0.49123813,3524.8,3524.5,2.26981]
[1719012416448,0.49123813,3524.7,3524.6,3.13875]
[1719012416641,0.35,3525.2,3524.8,4.61822]
[1719012416837,0.49119204,3525.1,3524.8,5.48722]
[1719012417042,0.49119204,3525.0,3524.8,5.48722]
[1719012417243,0.49119204,3524.9,3524.8,5.48722]
[1719012418254,0.49119204,3524.9,3524.8,7.75685]
[1719012418919,0.49119204,3524.9,3524.8,8.30685]
[1719012419763,2.07800062,3525.3,3525.1,2.26943]
[1719012419764,2.07919159,3525.3,3525.1,2.26943]
[1719012420068,0.49117531,3525.2,3525.1,2.26943]
[1719012420253,0.49117483,3525.2,3525.1,2.26943]
[1719012420968,0.49117445,3525.2,3525.1,2.26943]
[1719012422277,0.49116221,3525.2,3525.1,2.26943]
[1719012424326,0.49116221,3525.2,3525.1,2.36917386]
[1719012424531,0.49116221,3525.2,3525.1,0.09974386]
[1719012424782,10.14615979,3525.2,3525.1,0.09974386]
[1719012425011,2.26961,3524.9,3524.4,3.13887]
[1719012425313,0.49123097,3524.8,3524.4,3.13887]
[1719012425657,0.49123097,3524.7,3524.4,3.13887]
[1719012425889,0.49123097,3524.8,3524.4,3.13887]
[1719012426096,0.49123097,3524.7,3524.5,2.26982]
[1719012426298,0.49123097,3524.6,3524.5,2.26982]
[1719012426468,0.49123097,3524.8,3524.5,2.26982]
[1719012426664,0.49123097,3524.7,3524.5,2.26982]
[1719012426867,0.49123097,3524.6,3524.5,2.26982]